fUST/lending_fUST_20240621
["ID","MTS","AMOUNT","RATE_DAILY","PERIOD"]
[330041941,1718958643475,-500.0,0.00052219,120]
[330041942,1718958643485,-2173.16,0.00052219,120]
[330041943,1718958643495,-500.0,0.00052219,120]
[330041944,1718958643505,-500.0,0.00052219,120]
[330041945,1718958643515,-396.45864905,0.00052219,120]
[330041946,1718958643524,-832.34,0.00052219,120]
[330041947,1718958643535,-447.83803889,0.00052219,120]
[330041948,1718958643546,-2000.0,0.00052219,5]
[330041949,1718958643558,-500.0,0.00052219,120]
[330041950,1718958643568,-636.51,0.00052219,120]
[330041951,1718958643577,-500.0,0.00052219,120]
[330041952,1718958643588,-559.2,0.00052219,120]
[330041953,1718958643601,-500.0,0.00052219,120]
[330041954,1718958643612,-797.62,0.00052219,120]
[330041955,1718958643623,-500.0,0.00052219,120]
[330041956,1718958643634,-1000.26,0.00052219,120]
[330041957,1718958643645,-1612.37,0.00052219,120]
[330041958,1718958643655,-500.0,0.00052219,120]
[330041959,1718958643665,-477.14969963,0.00052219,120]
[330041960,1718958643675,-882.82,0.00052219,120]
[330041961,1718958643685,-500.0,0.00052219,120]
[330041962,1718958643694,-1308.42,0.00052219,120]
[330041964,1718958643704,-1449.31,0.00052219,120]
[330041966,1718958643714,-321.42667453,0.00052219,120]
[330041967,1718958643724,-378.13885399,0.00052219,120]
[330041968,1718958643733,-500.0,0.00052219,120]
[330041969,1718958643743,-500.0,0.00052219,120]
[330041970,1718958643753,-573.49,0.00052219,120]
[330041971,1718958643763,-500.0,0.00052219,7]
[330041972,1718958643773,-500.0,0.00052219,120]
[330041973,1718958643782,-500.0,0.00052219,120]
[330041974,1718958643792,-500.0,0.00052219,120]
[330041975,1718958643801,-641.04,0.00052219,120]
[330041976,1718958643811,-1688.86,0.00052219,120]
[330041977,1718958643822,-1450.84,0.00052219,120]
[330041978,1718958643832,-500.0,0.00052219,120]
[330041979,1718958643844,-500.0,0.00052219,120]
[330041980,1718958643854,-500.0,0.00052219,120]
[330041981,1718958643864,-589.47,0.00052219,120]
[330041982,1718958643874,-4068.38,0.00052219,120]
[330041983,1718958643883,-500.0,0.00052219,120]
[330041984,1718958643894,-1325.21,0.00052219,120]
[330041985,1718958643904,-285.74663119,0.00052219,120]
[330041986,1718958643914,-1256.39,0.00052219,120]
[330041987,1718958643924,-8594.43,0.00052219,120]
[330041988,1718958643933,-2048.77,0.00052219,120]
[330041989,1718958643943,-500.0,0.00052219,120]
[330041990,1718958643953,-500.0,0.00052219,120]
[330041991,1718958643963,-668.83,0.00052219,120]
[330041992,1718958643973,-27261.05,0.00052219,120]
[330041993,1718958643983,-1002.32,0.00052219,120]
[330041994,1718958643992,-500.0,0.00052219,120]
[330041995,1718958644002,-500.0,0.00052219,120]
[330041996,1718958644011,-500.0,0.00052219,120]
[330041997,1718958644021,-500.0,0.00052219,120]
[330041998,1718958644031,-500.0,0.00052219,120]
[330041999,1718958644040,-505.26,0.00052219,120]
[330042000,1718958644050,-985.96,0.00052219,120]
[330042001,1718958644060,-500.0,0.00052219,120]
[330042002,1718958644070,-1453.20314765,0.00052219,21]
[330042027,1718958646683,-1036.18685235,0.00052219,21]
[330042028,1718958646693,-834.49,0.00052219,120]
[330042029,1718958646703,-500.0,0.00052219,120]
[330042030,1718958646712,-500.0,0.00052219,120]
[330042031,1718958646721,-500.0,0.00052219,120]
[330042032,1718958646731,-4928.55,0.00052219,120]
[330042033,1718958646741,-500.0,0.00052219,120]
[330042034,1718958646751,-1505.32754941,0.00052219,120]
[330042035,1718958654124,1627.1217317,0.000225,30]
[330042036,1718958654147,1032.86955962,0.000225,30]
[330042037,1718958654169,207.83271563,0.000225,30]
[330042038,1718958654214,2164.17599305,0.000225,30]
[330042043,1718958965290,481.72793308,0.000175,2]
[330042047,1718959059066,-52000.0,0.000175,2]
[330042052,1718959351408,229.91,0.0002499,62]
[330042064,1718959602156,-192.83603781,0.000175,2]
[330042074,1718959746093,-574.31432046,0.000175,2]
[330042075,1718959746114,-155.59246022,0.000175,2]
[330042076,1718959746135,-1977.89410221,0.000176,2]
[330042077,1718959746156,-1089.6751314,0.00018409,2]
[330042078,1718959746179,-24900.0,0.00018531,2]
[330042079,1718959746199,-155.26293161,0.00018925,2]
[330042080,1718959746223,-260.509034,0.00019025,2]
[330042081,1718959746248,-185.45642962,0.000191,2]
[330042082,1718959746268,-1291.13911245,0.00019899,2]
[330042083,1718959746288,-370.76359616,0.00019999,2]
[330042084,1718959746310,-500.0,0.00019999,2]
[330042085,1718959746330,-500.0,0.00019999,2]
[330042086,1718959746351,-275.69901885,0.00019999,2]
[330042087,1718959746370,-271.06252242,0.00019999,2]
[330042088,1718959746390,-34888.27973183,0.0002,2]
[330042089,1718959748141,-19428.80811702,0.0002,2]
[330042090,1718959752107,-13139.71344396,0.0002,2]
[330042091,1718959752128,-257.00200324,0.00021,2]
[330042092,1718959752254,-155.58949098,0.00021095,2]
[330042093,1718959752276,-169.969187,0.00021096,2]
[330042094,1718959752297,-155.58011299,0.00021212,2]
[330042095,1718959752319,-238.19268167,0.00023,2]
[330042096,1718959752354,-1410.14174426,0.0002383,2]
[330042097,1718959754205,-66167.26286888,0.0002383,2]
[330042098,1718959754225,-121525.34578867,0.0002385,2]
[330042099,1718959754244,-1023.47133137,0.00025,2]
[330042100,1718959754266,-152.05863541,0.00026,2]
[330042101,1718959754287,-1027.04022962,0.000279,2]
[330042102,1718959754308,-212.07419964,0.00027918,2]
[330042103,1718959754328,-1638.26398363,0.0002799,2]
[330042104,1718959754348,-153.82992579,0.0003,7]
[330042105,1718959754368,-155.83004725,0.00030025,4]
[330042106,1718959754389,-14932.20668281,0.0003083,4]
[330042107,1718959754410,-1956.18,0.00035616,3]
[330042108,1718959754430,-1630.15,0.00035616,3]
[330042109,1718959754451,-169.969187,0.00044274,2]
[330042110,1718959754473,-20282.21711993,0.00045,120]
[330042111,1718959763111,-35539.2727296,0.00045,120]
[330042112,1718959763132,-769.75676566,0.00045,120]
[330042113,1718959763155,-22195.4757147,0.00046575,120]
[330042114,1718959763177,-822.567184,0.00047,10]
[330042115,1718959763198,-21699.83234518,0.0004826,2]
[330042116,1718959763221,-151.29640249,0.00048714,30]
[330042117,1718959763242,-5000.0,0.000488,4]
[330042118,1718959763632,1358.45,0.0004499,3]
[330042119,1718959783765,5034.81423698,0.00021212,2]
[330042120,1718959791413,271.81295968,0.00044475,2]
[330042121,1718959808672,500.0,0.00019999,2]
[330042122,1718959808744,420.46820719,0.00019999,2]
[330042124,1718959832338,158.89868407,0.00031674,2]
[330042125,1718959832366,382.70970565,0.00031674,2]
[330042164,1718959833744,-636.53625817,0.00031675,7]
[330042165,1718959833755,-6402.72208435,0.00031675,7]
[330042184,1718959838982,-19438.66230483,0.00031675,7]
[330042185,1718959838992,-53655.65874316,0.00031675,30]
[330042186,1718959839002,-1129.74672342,0.000489,28]
[330042187,1718959839012,-500.0,0.00049,120]
[330042188,1718959839023,-500.0,0.00049,120]
[330042189,1718959839042,-500.0,0.00049,120]
[330042190,1718959839052,-500.0,0.00049,120]
[330042191,1718959839063,-500.0,0.00049,120]
[330042192,1718959839073,-500.0,0.00049,120]
[330042193,1718959839083,-271.81295968,0.00049475,2]
[330042194,1718959839093,-151.29640249,0.00050272,60]
[330042195,1718959839104,-151.29640249,0.00050326,60]
[330042196,1718959839115,-151.29640249,0.00050716,60]
[330042197,1718959839125,-211.39206289,0.00050999,4]
[330042198,1718959839134,-151.29640249,0.0005111,60]
[330042199,1718959839145,-151.29640249,0.00051244,60]
[330042200,1718959839157,-943.37,0.00051307,3]
[330042201,1718959839167,-49017.54923861,0.00051317,2]
[330042202,1718959839178,-151.29640249,0.0005174,60]
[330042203,1718959839189,-5146.28620041,0.00051803,120]
[330042204,1718959839199,-154.2400207,0.00051937,60]
[330042205,1718959839210,-5000.0,0.00052,6]
[330042206,1718959839220,-153.0,0.00052007,30]
[330042207,1718959839230,-1132.05,0.00052043,3]
[330042208,1718959839240,-500.0,0.00052054,120]
[330042209,1718959839250,-726.07,0.00052054,120]
[330042210,1718959839260,-798.03,0.00052054,120]
[330042212,1718959839270,-500.0,0.00052054,120]
[330042214,1718959839280,-500.0,0.00052054,120]
[330042215,1718959839293,-500.0,0.00052054,120]
[330042217,1718959839302,-713.69,0.00052054,120]
[330042219,1718959839312,-500.0,0.00052054,120]
[330042220,1718959839321,-400.17495424,0.00052054,120]
[330042221,1718959839330,-556.95,0.00052054,120]
[330042223,1718959839340,-500.0,0.00052054,120]
[330042225,1718959839350,-2000.0,0.00052054,5]
[330042226,1718959839360,-500.0,0.00052054,120]
[330042228,1718959839370,-500.0,0.00052054,120]
[330042229,1718959839380,-490.62179394,0.00052054,120]
[330042230,1718959839390,-250.45,0.00052054,120]
[330042231,1718959839401,-741.65,0.00052054,120]
[330042232,1718959839411,-500.0,0.00052054,120]
[330042233,1718959839421,-213.42305044,0.00052054,120]
[330042234,1718959839432,-500.0,0.00052054,120]
[330042236,1718959839442,-500.0,0.00052054,120]
[330042238,1718959839451,-500.0,0.00052054,120]
[330042240,1718959839461,-1477.75,0.00052054,120]
[330042242,1718959839471,-500.0,0.00052054,120]
[330042244,1718959839481,-2347.84,0.00052054,120]
[330042246,1718959839491,-151.28009103,0.00052054,120]
[330042249,1718959839502,-500.0,0.00052054,2]
[330042252,1718959839512,-1148.2,0.00052054,120]
[330042255,1718959839523,-500.0,0.00052054,120]
[330042258,1718959839534,-500.0,0.00052054,120]
[330042261,1718959839545,-698.13,0.00052054,120]
[330042263,1718959839556,-500.0,0.00052054,120]
[330042265,1718959839566,-500.0,0.00052054,120]
[330042267,1718959839576,-500.0,0.00052054,120]
[330042269,1718959839587,-500.0,0.00052054,120]
[330042271,1718959839597,-500.0,0.00052054,120]
[330042273,1718959839607,-500.0,0.00052054,120]
[330042275,1718959839617,-663.89,0.00052054,120]
[330042277,1718959839627,-500.0,0.00052054,120]
[330042280,1718959839637,-500.0,0.00052054,120]
[330042281,1718959839647,-500.0,0.00052054,120]
[330042283,1718959839656,-500.0,0.00052054,120]
[330042285,1718959839666,-500.0,0.00052054,120]
[330042287,1718959839676,-500.0,0.00052054,120]
[330042289,1718959839686,-500.0,0.00052054,120]
[330042291,1718959839696,-500.0,0.00052054,120]
[330042294,1718959839706,-500.0,0.00052054,120]
[330042295,1718959839716,-873.3,0.00052054,120]
[330042297,1718959839727,-500.0,0.00052054,120]
[330042299,1718959839737,-500.0,0.00052054,120]
[330042301,1718959839748,-500.0,0.00052054,120]
[330042303,1718959839759,-500.0,0.00052054,120]
[330042305,1718959839770,-500.0,0.00052054,120]
[330042307,1718959839780,-500.0,0.00052054,120]
[330042309,1718959839794,-500.0,0.00052054,120]
[330042311,1718959839804,-500.0,0.00052054,120]
[330042313,1718959839813,-500.0,0.00052054,120]
[330042315,1718959839823,-2145.24,0.00052054,120]
[330042317,1718959839832,-500.0,0.00052054,120]
[330042319,1718959839841,-500.0,0.00052054,120]
[330042321,1718959839851,-500.0,0.00052054,120]
[330042323,1718959839860,-518.21,0.00052054,120]
[330042325,1718959839871,-740.47,0.00052054,120]
[330042327,1718959839881,-500.0,0.00052054,120]
[330042329,1718959839891,-500.0,0.00052054,120]
[330042331,1718959839901,-500.0,0.00052054,120]
[330042333,1718959839911,-384.48217506,0.00052054,120]
[330042335,1718959839921,-500.0,0.00052054,120]
[330042337,1718959839933,-990.15,0.00052054,120]
[330042339,1718959839944,-500.0,0.00052054,120]
[330042341,1718959839958,-500.0,0.00052054,120]
[330042343,1718959839968,-500.0,0.00052054,120]
[330042345,1718959839978,-1410.83,0.00052054,120]
[330042347,1718959839988,-500.0,0.00052054,120]
[330042349,1718959839999,-517.24,0.00052054,120]
[330042351,1718959840010,-1069.43,0.00052054,120]
[330042353,1718959840020,-250.0,0.00052054,120]
[330042355,1718959840031,-500.0,0.00052054,120]
[330042357,1718959840045,-871.09,0.00052054,120]
[330042359,1718959840055,-500.0,0.00052054,120]
[330042360,1718959840065,-500.0,0.00052054,120]
[330042361,1718959840075,-500.0,0.00052054,120]
[330042362,1718959840085,-500.0,0.00052054,120]
[330042363,1718959840096,-500.0,0.00052054,120]
[330042364,1718959840107,-500.0,0.00052054,120]
[330042365,1718959840118,-500.0,0.00052054,120]
[330042366,1718959840128,-500.0,0.00052054,120]
[330042367,1718959840138,-500.0,0.00052054,120]
[330042368,1718959840149,-500.0,0.00052054,120]
[330042369,1718959840159,-1294.12,0.00052054,120]
[330042370,1718959840169,-500.0,0.00052054,120]
[330042371,1718959840179,-500.0,0.00052054,120]
[330042372,1718959840189,-1430.26,0.00052054,120]
[330042373,1718959840202,-1022.77,0.00052054,120]
[330042374,1718959840212,-500.0,0.00052054,120]
[330042375,1718959840226,-500.0,0.00052054,120]
[330042377,1718959840237,-625.69,0.00052054,120]
[330042378,1718959840247,-500.0,0.00052054,120]
[330042379,1718959840257,-500.0,0.00052054,120]
[330042380,1718959840267,-500.0,0.00052054,120]
[330042382,1718959840276,-556.84518582,0.00052054,120]
[330042383,1718959840290,-500.0,0.00052054,120]
[330042384,1718959840299,-1138.77,0.00052054,120]
[330042386,1718959840308,-1138.77,0.00052054,120]
[330042387,1718959840317,-1138.77,0.00052054,120]
[330042388,1718959840327,-1138.77,0.00052054,120]
[330042389,1718959840336,-1138.77,0.00052054,120]
[330042390,1718959840346,-500.0,0.00052054,120]
[330042391,1718959840355,-500.0,0.00052054,120]
[330042392,1718959840364,-500.0,0.00052054,7]
[330042393,1718959840374,-1272.21,0.00052054,120]
[330042394,1718959840383,-3914.19,0.00052054,120]
[330042395,1718959840392,-500.0,0.00052054,60]
[330042396,1718959840401,-500.0,0.00052054,120]
[330042397,1718959840410,-1982.44,0.00052054,120]
[330042398,1718959840419,-500.0,0.00052054,120]
[330042399,1718959840428,-510.5953373,0.00052054,120]
[330042400,1718959840437,-500.0,0.00052054,120]
[330042401,1718959840447,-481.54817366,0.00052054,120]
[330042402,1718959840458,-500.0,0.00052054,120]
[330042403,1718959840468,-500.0,0.00052054,120]
[330042404,1718959840477,-592.74576056,0.00052054,120]
[330042405,1718959840487,-821.85,0.00052054,120]
[330042408,1718959840497,-500.0,0.00052054,120]
[330042410,1718959840507,-500.0,0.00052054,120]
[330042412,1718959840516,-500.0,0.00052054,120]
[330042413,1718959840525,-500.0,0.00052054,120]
[330042414,1718959840538,-304.46664523,0.00052054,120]
[330042415,1718959840548,-505.55229036,0.00052054,120]
[330042416,1718959840558,-500.0,0.00052054,120]
[330042417,1718959840567,-500.0,0.00052054,2]
[330042418,1718959840577,-500.0,0.00052054,120]
[330042419,1718959840586,-500.0,0.00052054,120]
[330042420,1718959840596,-15648.42,0.00052054,120]
[330042421,1718959840606,-26691.7,0.00052054,120]
[330042422,1718959840616,-500.0,0.00052054,120]
[330042423,1718959840625,-866.79,0.00052054,120]
[330042424,1718959840635,-941.93,0.00052054,120]
[330042425,1718959840645,-574.19,0.00052054,120]
[330042426,1718959840654,-4306.83,0.00052054,120]
[330042427,1718959840664,-500.0,0.00052054,120]
[330042428,1718959840673,-500.0,0.00052054,120]
[330042429,1718959840683,-1240.08,0.00052054,120]
[330042430,1718959840692,-500.0,0.00052054,120]
[330042432,1718959840702,-568.38,0.00052054,120]
[330042433,1718959840711,-2457.73,0.00052054,21]
[330042434,1718959840721,-500.0,0.00052054,120]
[330042435,1718959840731,-500.0,0.00052054,120]
[330042436,1718959840740,-500.0,0.00052054,120]
[330042437,1718959840749,-500.0,0.00052054,120]
[330042438,1718959840759,-8447.22,0.00052054,120]
[330042439,1718959840769,-502.69734291,0.00052054,120]
[330042440,1718959840778,-978.09,0.00052054,120]
[330042441,1718959840796,-590.66657612,0.00052054,120]
[330042442,1718959840901,-500.0,0.00052054,120]
[330042443,1718959840913,-500.0,0.00052054,120]
[330042444,1718959840923,-4886.87,0.00052054,120]
[330042445,1718959840938,-657.25,0.00052054,120]
[330042446,1718959840948,-1560.5,0.00052054,120]
[330042447,1718959840961,-990.3,0.00052054,120]
[330042448,1718959840971,-598.49,0.00052054,120]
[330042449,1718959840980,-500.0,0.00052054,120]
[330042450,1718959840990,-500.0,0.00052054,120]
[330042451,1718959840999,-500.0,0.00052054,120]
[330042452,1718959841010,-500.0,0.00052054,120]
[330042453,1718959841021,-500.0,0.00052054,120]
[330042454,1718959841031,-518.67198392,0.00052054,120]
[330042455,1718959841046,-857.45,0.00052054,120]
[330042456,1718959841055,-500.0,0.00052054,120]
[330042457,1718959841065,-500.0,0.00052054,120]
[330042458,1718959841073,-500.0,0.00052054,120]
[330042459,1718959841083,-500.0,0.00052054,120]
[330042460,1718959841092,-500.0,0.00052054,120]
[330042461,1718959841101,-597.13044456,0.00052054,120]
[330042462,1718959841110,-500.0,0.00052054,120]
[330042463,1718959841119,-5200.49,0.00052054,120]
[330042464,1718959841128,-502.41,0.00052054,120]
[330042465,1718959841137,-718.46,0.00052054,120]
[330042466,1718959841146,-500.0,0.00052054,120]
[330042467,1718959841155,-500.0,0.00052054,120]
[330042468,1718959841165,-500.0,0.00052054,120]
[330042469,1718959841176,-818.27,0.00052054,120]
[330042470,1718959841185,-500.0,0.00052054,120]
[330042471,1718959841195,-500.0,0.00052054,120]
[330042472,1718959841203,-500.0,0.00052054,120]
[330042473,1718959841213,-1010.48,0.00052054,120]
[330042474,1718959841223,-1222.47,0.00052054,120]
[330042475,1718959841231,-381.88039099,0.00052054,120]
[330042476,1718959841240,-500.0,0.00052054,120]
[330042477,1718959841250,-500.0,0.00052054,120]
[330042478,1718959841259,-5384.28,0.00052054,120]
[330042479,1718959841268,-500.0,0.00052054,120]
[330042480,1718959841277,-2622.94,0.00052054,120]
[330042481,1718959841292,-498.36542548,0.00052054,120]
[330042482,1718959841301,-500.0,0.00052054,120]
[330042483,1718959841313,-3431.36,0.00052054,120]
[330042484,1718959841322,-894.17,0.00052054,120]
[330042485,1718959841331,-500.0,0.00052054,120]
[330042486,1718959841340,-500.0,0.00052054,120]
[330042487,1718959841349,-5040.11,0.00052054,120]
[330042488,1718959841363,-500.0,0.00052054,120]
[330042489,1718959841372,-500.0,0.00052054,120]
[330042491,1718959841381,-1526.79,0.00052054,120]
[330042492,1718959841391,-500.0,0.00052054,120]
[330042493,1718959841400,-500.0,0.00052054,120]
[330042494,1718959841409,-981.25,0.00052054,120]
[330042495,1718959841417,-967.94,0.00052054,120]
[330042496,1718959841427,-500.0,0.00052054,120]
[330042497,1718959841437,-500.0,0.00052054,120]
[330042498,1718959841446,-26665.07,0.00052054,120]
[330042499,1718959841455,-500.0,0.00052054,120]
[330042500,1718959841464,-500.0,0.00052054,120]
[330042501,1718959841474,-1169.65,0.00052054,120]
[330042502,1718959841483,-500.0,0.00052054,120]
[330042503,1718959841493,-500.0,0.00052054,120]
[330042504,1718959841502,-500.0,0.00052054,120]
[330042505,1718959841511,-500.0,0.00052054,120]
[330042506,1718959841521,-500.0,0.00052054,120]
[330042508,1718959841531,-7984.69,0.00052054,120]
[330042510,1718959841541,-505.39,0.00052054,120]
[330042512,1718959841550,-500.0,0.00052054,120]
[330042514,1718959841559,-892.3,0.00052054,120]
[330042516,1718959841569,-500.0,0.00052054,120]
[330042518,1718959841578,-1138.77,0.00052135,120]
[330042520,1718959841588,-1138.77,0.00052135,120]
[330042522,1718959841597,-1138.77,0.00052135,120]
[330042524,1718959841605,-274.48762067,0.00052136,120]
[330042526,1718959841615,-726.07,0.00052136,120]
[330042528,1718959841624,-798.03,0.00052136,120]
[330042530,1718959841634,-497.26295296,0.00052136,120]
[330042532,1718959841643,-500.0,0.00052136,120]
[330042534,1718959841652,-500.0,0.00052136,120]
[330042536,1718959841662,-713.69,0.00052136,120]
[330042537,1718959841671,-500.0,0.00052136,120]
[330042539,1718959841681,-556.95,0.00052136,120]
[330042541,1718959841690,-500.0,0.00052136,120]
[330042543,1718959841698,-2000.0,0.00052136,5]
[330042544,1718959841707,-500.0,0.00052136,120]
[330042546,1718959841717,-741.65,0.00052136,120]
[330042548,1718959841726,-500.0,0.00052136,120]
[330042550,1718959841736,-500.0,0.00052136,120]
[330042552,1718959841745,-1477.75,0.00052136,120]
[330042554,1718959841755,-500.0,0.00052136,120]
[330042556,1718959841764,-2347.84,0.00052136,120]
[330042558,1718959841773,-500.0,0.00052136,2]
[330042560,1718959841787,-1148.2,0.00052136,120]
[330042562,1718959841797,-500.0,0.00052136,120]
[330042564,1718959841805,-698.13,0.00052136,120]
[330042566,1718959841814,-500.0,0.00052136,120]
[330042567,1718959841823,-500.0,0.00052136,120]
[330042569,1718959841831,-500.0,0.00052136,120]
[330042571,1718959841840,-663.89,0.00052136,120]
[330042573,1718959841849,-500.0,0.00052136,120]
[330042575,1718959841859,-500.0,0.00052136,120]
[330042577,1718959841867,-500.0,0.00052136,120]
[330042579,1718959841876,-500.0,0.00052136,120]
[330042581,1718959841885,-500.0,0.00052136,120]
[330042583,1718959841895,-500.0,0.00052136,120]
[330042585,1718959841904,-500.0,0.00052136,120]
[330042587,1718959841913,-873.3,0.00052136,120]
[330042589,1718959841922,-500.0,0.00052136,120]
[330042591,1718959841933,-500.0,0.00052136,120]
[330042593,1718959841943,-500.0,0.00052136,120]
[330042595,1718959841954,-500.0,0.00052136,120]
[330042597,1718959841963,-500.0,0.00052136,120]
[330042599,1718959841973,-500.0,0.00052136,120]
[330042601,1718959841983,-500.0,0.00052136,120]
[330042603,1718959841992,-2145.24,0.00052136,120]
[330042605,1718959842002,-500.0,0.00052136,120]
[330042606,1718959842011,-500.0,0.00052136,120]
[330042608,1718959842022,-500.0,0.00052136,120]
[330042610,1718959842031,-518.21,0.00052136,120]
[330042612,1718959842047,-740.47,0.00052136,120]
[330042614,1718959842056,-500.0,0.00052136,120]
[330042616,1718959842065,-500.0,0.00052136,120]
[330042618,1718959842075,-500.0,0.00052136,120]
[330042620,1718959842083,-990.15,0.00052136,120]
[330042622,1718959842092,-500.0,0.00052136,120]
[330042623,1718959842101,-1410.83,0.00052136,120]
[330042624,1718959842109,-500.0,0.00052136,120]
[330042625,1718959842118,-517.24,0.00052136,120]
[330042627,1718959842126,-1069.43,0.00052136,120]
[330042629,1718959842135,-250.0,0.00052136,120]
[330042631,1718959842145,-500.0,0.00052136,120]
[330042633,1718959842154,-871.09,0.00052136,120]
[330042634,1718959842163,-500.0,0.00052136,120]
[330042635,1718959842172,-500.0,0.00052136,120]
[330042636,1718959842181,-500.0,0.00052136,120]
[330042637,1718959842190,-500.0,0.00052136,120]
[330042638,1718959842199,-500.0,0.00052136,120]
[330042639,1718959842208,-500.0,0.00052136,120]
[330042640,1718959842217,-500.0,0.00052136,120]
[330042641,1718959842226,-500.0,0.00052136,120]
[330042642,1718959842236,-1294.12,0.00052136,120]
[330042643,1718959842245,-500.0,0.00052136,120]
[330042644,1718959842255,-500.0,0.00052136,120]
[330042645,1718959842263,-1430.26,0.00052136,120]
[330042646,1718959842272,-1022.77,0.00052136,120]
[330042647,1718959842282,-500.0,0.00052136,120]
[330042648,1718959842292,-500.0,0.00052136,120]
[330042649,1718959842302,-625.69,0.00052136,120]
[330042650,1718959842311,-500.0,0.00052136,120]
[330042651,1718959842320,-500.0,0.00052136,120]
[330042652,1718959842329,-500.0,0.00052136,120]
[330042653,1718959842338,-500.0,0.00052136,120]
[330042654,1718959842350,-500.0,0.00052136,120]
[330042655,1718959842359,-500.0,0.00052136,120]
[330042656,1718959842369,-500.0,0.00052136,7]
[330042657,1718959842378,-1272.21,0.00052136,120]
[330042658,1718959842387,-3914.19,0.00052136,120]
[330042659,1718959842396,-500.0,0.00052136,60]
[330042660,1718959842406,-585.78820829,0.00052136,120]
[330042661,1718959842416,-1982.44,0.00052136,120]
[330042662,1718959842426,-500.0,0.00052136,120]
[330042663,1718959842435,-500.0,0.00052136,120]
[330042664,1718959842444,-500.0,0.00052136,120]
[330042665,1718959842454,-500.0,0.00052136,120]
[330042666,1718959842463,-821.85,0.00052136,120]
[330042667,1718959842472,-500.0,0.00052136,120]
[330042668,1718959842481,-500.0,0.00052136,120]
[330042669,1718959842491,-500.0,0.00052136,120]
[330042670,1718959842500,-15648.42,0.00052136,120]
[330042671,1718959842510,-26691.7,0.00052136,120]
[330042672,1718959842519,-500.0,0.00052136,120]
[330042673,1718959842528,-866.79,0.00052136,120]
[330042674,1718959842542,-941.93,0.00052136,120]
[330042675,1718959842551,-574.19,0.00052136,120]
[330042676,1718959842560,-4306.83,0.00052136,120]
[330042677,1718959842571,-500.0,0.00052136,120]
[330042678,1718959842581,-1240.08,0.00052136,120]
[330042679,1718959842591,-500.0,0.00052136,120]
[330042680,1718959842600,-568.38,0.00052136,120]
[330042681,1718959842610,-2457.73,0.00052136,21]
[330042682,1718959842619,-500.0,0.00052136,120]
[330042683,1718959842628,-500.0,0.00052136,120]
[330042684,1718959842638,-500.0,0.00052136,120]
[330042685,1718959842647,-500.0,0.00052136,120]
[330042686,1718959842657,-8447.22,0.00052136,120]
[330042687,1718959842666,-978.09,0.00052136,120]
[330042688,1718959842676,-500.0,0.00052136,120]
[330042689,1718959842685,-500.0,0.00052136,120]
[330042690,1718959842696,-4886.87,0.00052136,120]
[330042691,1718959842705,-657.25,0.00052136,120]
[330042692,1718959842714,-1560.5,0.00052136,120]
[330042693,1718959842723,-598.49,0.00052136,120]
[330042694,1718959842732,-990.3,0.00052136,120]
[330042695,1718959842741,-500.0,0.00052136,120]